fUSD/lending_fUSD_20240123
["ID","MTS","AMOUNT","RATE_DAILY","PERIOD"]
[312565430,1706003447707,-200.33,0.00031579,2]
[312565431,1706003447716,-184.64,0.00031644,2]
[312565432,1706003447725,-623.469,0.00031772,2]
[312565433,1706003447735,-835.0,0.00031772,2]
[312565434,1706003447744,-703.0,0.00031772,2]
[312565435,1706003447753,-215.0,0.00031772,2]
[312565436,1706003447762,-998.0,0.00031772,2]
[312565437,1706003447771,-426.0,0.00031772,2]
[312565438,1706003447781,-315.864,0.00031772,2]
[312565439,1706003447793,-236.0,0.00031772,2]
[312565440,1706003447802,-867.0,0.00031772,2]
[312565441,1706003447811,-150.0,0.00031772,2]
[312565442,1706003447820,-1031.0,0.00031772,2]
[312565443,1706003447830,-150.0,0.00031772,2]
[312565444,1706003447839,-150.0,0.00031772,2]
[312565445,1706003447848,-1381.60113217,0.000318,3]
[312565446,1706003447858,-200.0,0.00031818,3]
[312565447,1706003447867,-187.96504818,0.00031827,4]
[312565448,1706003447876,-150.32,0.00031964,2]
[312565449,1706003447886,-155.60349879,0.00032,2]
[312565450,1706003447895,-3720.90829946,0.00032078,15]
[312565451,1706003447904,-841.55822222,0.00032078,2]
[312565452,1706003447914,-200.0,0.00032078,2]
[312565453,1706003447923,-528.39710743,0.0003215,2]
[312565454,1706003447932,-317.54985681,0.00032162,4]
[312565455,1706003447941,-713.37,0.00032163,2]
[312565456,1706003447950,-2245.0365671,0.000324,6]
[312565457,1706003447960,-150.32,0.0003242,2]
[312565458,1706003447969,-321.38020462,0.00032493,4]
[312565459,1706003447978,-1481.68,0.00032575,2]
[312565460,1706003447987,-200.33,0.00032588,2]
[312565461,1706003447997,-1000.0,0.00032624,2]
[312565462,1706003448006,-204.23,0.00032877,15]
[312565463,1706003448015,-500.0,0.00032877,2]
[312565464,1706003448025,-154.67,0.00032877,2]
[312565465,1706003448035,-150.32,0.00032877,2]
[312565466,1706003448046,-167.53,0.00032889,2]
[312565467,1706003448056,-528.39710743,0.000329,2]
[312565468,1706003448066,-158.0,0.00032993,2]
[312565469,1706003448076,-550.0,0.00033,3]
[312565470,1706003448085,-203.0,0.00033,2]
[312565471,1706003448095,-250.43,0.00033,2]
[312565472,1706003448104,-222.50250077,0.00033163,4]
[312565473,1706003448114,-175.58250697,0.00033163,4]
[312565474,1706003448124,-539.08,0.00033208,2]
[312565475,1706003448133,-380.59613526,0.00033349,6]
[312565476,1706003448142,-150.0,0.00033369,7]
[312565477,1706003448152,-1257.2742,0.00033398,2]
[312565478,1706003448162,-584.76109505,0.00033496,2]
[312565479,1706003448172,-193.03747873,0.00033496,2]
[312565480,1706003448182,-694.42463172,0.00033497,2]
[312565481,1706003448191,-764.11347582,0.00033498,4]
[312565482,1706003448201,-468.14271149,0.00033498,4]
[312565483,1706003448210,-731.25712485,0.00033498,4]
[312565484,1706003448220,-155.50340642,0.00033498,4]
[312565485,1706003448230,-200.16928881,0.00033498,4]
[312565486,1706003448241,-25725.42706865,0.000335,4]
[312565487,1706003448251,-200.33,0.00033598,2]
[312565488,1706003448261,-528.39710743,0.0003365,2]
[312565489,1706003448271,-1000.0,0.00034,4]
[312565490,1706003448282,-155.38442978,0.00034,4]
[312565491,1706003448296,-500.0,0.00034,2]
[312565492,1706003448305,-1481.68,0.00034219,2]
[312565493,1706003448315,-528.39710743,0.000344,2]
[312565494,1706003448324,-150.0,0.00034548,10]
[312565495,1706003448334,-152.0,0.00034578,3]
[312565496,1706003448344,-200.33,0.00034608,2]
[312565497,1706003448354,-167.53,0.00034699,2]
[312565498,1706003448364,-593.851,0.00034772,2]
[312565499,1706003448374,-215.0,0.00034772,2]
[312565500,1706003448385,-998.0,0.00034772,2]
[312565501,1706003448395,-426.0,0.00034772,2]
[312565502,1706003448405,-236.0,0.00034772,2]
[312565503,1706003448415,-177.071,0.00034772,2]
[312565504,1706003448426,-150.0,0.00034772,2]
[312565505,1706003448436,-180.174,0.00034772,2]
[312565506,1706003448448,-150.0,0.00034772,2]
[312565507,1706003448458,-200.0,0.00034819,5]
[312565508,1706003448471,-968.746937,0.000349,7]
[312565509,1706003448480,-535.08709165,0.000349,2]
[312565510,1706003448490,-535.08709159,0.000349,2]
[312565511,1706003448501,-535.08709159,0.000349,2]
[312565512,1706003448511,-535.08709159,0.000349,2]
[312565513,1706003448520,-2245.0365671,0.000349,7]
[312565514,1706003448530,-155.0,0.00035,4]
[312565515,1706003448543,-600.0,0.00035,3]
[312565516,1706003448553,-155.0,0.00035,2]
[312565517,1706003448564,-344.0,0.000351,2]
[312565518,1706003448574,-205.0,0.00035107,21]
[312565519,1706003448584,-1276.0,0.00035134,5]
[312565520,1706003448594,-528.39710743,0.0003515,2]
[312565521,1706003448603,-150.0,0.000353,7]
[312565522,1706003448613,-539.08,0.00035472,2]
[312565523,1706003448622,-1000.0,0.000355,2]
[312565524,1706003448632,-500.0,0.000356,7]
[312565525,1706003448642,-200.0,0.00035616,2]
[312565526,1706003448651,-154.67,0.00035616,2]
[312565527,1706003448660,-1000.0,0.00035646,10]
[312565528,1706003448669,-1000.0,0.00035823,10]
[312565529,1706003448678,-192.73174756,0.00035823,6]
[312565530,1706003448688,-314.8939949,0.00035823,7]
[312565531,1706003448697,-914.20837675,0.00035823,8]
[312565532,1706003448706,-1000.0,0.00035823,10]
[312565533,1706003448716,-1677.22040265,0.00035823,8]
[312565534,1706003448725,-1000.0,0.00035823,10]
[312565535,1706003448734,-1614.56592189,0.00035823,8]
[312565536,1706003448743,-1000.0,0.00035823,10]
[312565537,1706003448753,-2110.62884249,0.00035823,7]
[312565538,1706003448763,-972.43135565,0.00035823,4]
[312565539,1706003448772,-1000.0,0.00035823,10]
[312565540,1706003448782,-379.20494005,0.00035823,7]
[312565541,1706003448793,-1284.47429049,0.00035823,7]
[312565542,1706003448803,-1000.0,0.00035823,10]
[312565543,1706003448812,-1000.0,0.00035823,10]
[312565544,1706003448822,-678.05401907,0.00035823,7]
[312565545,1706003448831,-680.38280968,0.00035823,7]
[312565546,1706003448840,-1000.0,0.00035823,10]
[312565547,1706003448850,-1000.0,0.00035886,2]
[312565548,1706003448860,-1120.3056,0.00035899,2]
[312565549,1706003448869,-500.0,0.000359,7]
[312565550,1706003448879,-528.39710743,0.000359,2]
[312565551,1706003448890,-767.16175879,0.00035998,4]
[312565552,1706003448900,-4203.77540075,0.00036,7]
[312565553,1706003448912,-1818.45,0.00036,5]
[312565554,1706003448922,-167.26981343,0.00036005,2]
[312565555,1706003448931,-151.0123,0.00036048,8]
[312565556,1706003448941,-151.0123,0.00036148,8]
[312565557,1706003448952,-535.08709159,0.00036216,2]
[312565558,1706003448962,-1295.32515456,0.00036216,14]
[312565559,1706003448972,-151.0123,0.00036248,8]
[312565560,1706003448981,-151.0123,0.00036348,8]
[312565561,1706003448991,-203.9274524,0.00036372,4]
[312565562,1706003449000,-151.0123,0.00036448,8]
[312565563,1706003449010,-167.53,0.00036508,2]
[312565564,1706003449020,-158.0,0.00036522,2]
[312565565,1706003449031,-151.0123,0.00036548,8]
[312565566,1706003449043,-204.23,0.00036613,15]
[312565567,1706003449263,-151.0123,0.00036648,8]
[312565568,1706003449273,-528.39710743,0.0003665,2]
[312565569,1706003449283,-154.37407921,0.00036698,2]
[312565570,1706003449296,-151.0123,0.00036748,8]
[312565571,1706003449306,-5000.0,0.00036798,3]
[312565572,1706003449322,-380.59613526,0.00036798,11]
[312565573,1706003449333,-493.1949,0.000368,2]
[312565574,1706003449342,-412.833,0.000368,2]
[312565575,1706003449352,-1000.0,0.000368,2]
[312565576,1706003449362,-178.454823,0.00036819,2]
[312565577,1706003449372,-267.744868,0.00036819,2]
[312565578,1706003449381,-326.753024,0.00036819,2]
[312565579,1706003449391,-185.56846,0.00036819,2]
[312565580,1706003449401,-162.536707,0.00036819,2]
[312565581,1706003449411,-502.969038,0.00036819,2]
[312565582,1706003449421,-619.100283,0.00036819,2]
[312565583,1706003449431,-166.212829,0.00036819,2]
[312565584,1706003449441,-184.520411,0.00036819,2]
[312565585,1706003449451,-162.536707,0.00036819,2]
[312565586,1706003449465,-157.950693,0.00036819,2]
[312565587,1706003449475,-187.094769,0.00036819,2]
[312565588,1706003449489,-834.39,0.00036846,2]
[312565589,1706003449500,-151.0123,0.00036848,8]
[312565590,1706003449511,-252.52,0.00036886,2]
[312565591,1706003449521,-252.52,0.00036888,2]
[312565592,1706003449532,-252.52,0.00036888,2]
[312565593,1706003449545,-7984.37802076,0.00036896,4]
[312565594,1706003449609,-4425.72752905,0.00036896,4]
[312565595,1706003449620,-468.46628896,0.00036896,4]
[312565596,1706003449637,-31667.85072223,0.00036896,4]
[312565597,1706003449646,-180658.54463546,0.00036898,2]
[312565601,1706003479062,3156.10939571,0.00021,2]
[312565602,1706003522063,219.03234786,0.000155,2]
[312565604,1706003535804,-504.41543892,0.00022306,2]
[312565605,1706003535830,-174.45102702,0.00022307,2]
[312565606,1706003535856,-466.060242,0.00022308,2]
[312565607,1706003549356,176.47,0.00022,2]
[312565608,1706003549634,200.0,0.00021918,2]
[312565609,1706003560940,502.5825696,0.00022,2]
[312565610,1706003568931,5033.15324377,0.00021002,2]
[312565611,1706003611850,1126.0,0.0002231,2]
[312565612,1706003636233,3550.0,0.0002,2]
[312565619,1706003904783,421.92,0.0002045,2]
[312565620,1706003955424,162.88,0.00022307,2]
[312565621,1706004038762,2382.06747869,0.00022307,2]
[312565622,1706004120860,-150.0,0.00021881,2]
[312565623,1706004140824,-8901.51252131,0.00022307,2]
[312565624,1706004140847,-1266.09,0.00022367,2]
[312565625,1706004140872,-151.27,0.00022411,2]
[312565626,1706004140907,-800.0,0.00022427,2]
[312565627,1706004140931,-151.27,0.00022473,2]
[312565628,1706004140955,-151.27,0.00022534,2]
[312565629,1706004140978,-946.34,0.0002254,2]
[312565630,1706004140998,-176.47,0.00022548,2]
[312565631,1706004141022,-151.27,0.00022596,2]
[312565632,1706004141053,-665.76,0.00022628,2]
[312565633,1706004141077,-151.27,0.00022657,2]
[312565634,1706004141100,-421.92,0.00022714,2]
[312565635,1706004141124,-151.27,0.00022719,2]
[312565636,1706004141147,-151.27,0.0002278,2]
[312565637,1706004141170,-250.0,0.00022784,2]
[312565638,1706004141192,-150.0,0.00022799,2]
[312565639,1706004141215,-155.39345379,0.000228,2]
[312565640,1706004141237,-3620.9655,0.000228,2]
[312565641,1706004141260,-151.27,0.00022841,2]
[312565642,1706004141290,-2000.0,0.00022868,2]
[312565643,1706004141313,-64949.71789338,0.000229,2]
[312565644,1706004141335,-251.3999,0.000229,2]
[312565645,1706004141359,-155.03315391,0.000229,2]
[312565646,1706004141381,-255.36501222,0.000229,2]
[312565647,1706004141403,-380.59613527,0.000229,2]
[312565648,1706004141425,-2113.58842972,0.000229,2]
[312565649,1706004141447,-227.36657171,0.000229,2]
[312565650,1706004141469,-366.23240116,0.000229,2]
[312565651,1706004141494,-151.27,0.00022903,2]
[312565652,1706004141516,-151.27,0.00022964,2]
[312565653,1706004141541,-155.39345371,0.00022973,2]
[312565654,1706004141563,-1649.01203385,0.0002299,2]
[312565655,1706004141586,-503.46319117,0.00022998,2]
[312565656,1706004141609,-155.38611778,0.00022998,2]
[312565657,1706004141632,-947.44703276,0.00022998,2]
[312565658,1706004141663,-1115.45000218,0.00022998,2]
[312565659,1706004141687,-586.04654071,0.00022998,2]
[312565660,1706004141709,-1407.16889003,0.00022999,2]
[312565661,1706004141732,-1866.75088066,0.00022999,2]
[312565662,1706004141755,-567.86933457,0.00022999,2]
[312565663,1706004141780,-409.61579158,0.00022999,2]
[312565664,1706004141804,-500.0,0.00022999,2]
[312565665,1706004141826,-210.81206285,0.00022999,2]
[312565666,1706004141848,-248.20433166,0.00022999,2]
[312565667,1706004141871,-500.0,0.00022999,2]
[312565668,1706004141892,-422.97377135,0.00022999,2]
[312565669,1706004141914,-549.59625661,0.00022999,2]
[312565670,1706004141935,-470.90530832,0.00022999,2]
[312565671,1706004141957,-2449.59672984,0.00023,2]
[312565672,1706004141979,-44391.42903242,0.00023,2]
[312565673,1706004173538,-176.47,0.00022,2]
[312565674,1706004173562,-176.47,0.00022548,2]
[312565675,1706004173583,-207.36809133,0.000228,2]
[312565676,1706004173604,-186.74090253,0.000229,2]
[312565677,1706004173625,-331.73128746,0.000229,2]
[312565678,1706004173647,-629.39727996,0.000229,2]
[312565679,1706004173669,-747.39425375,0.000229,2]
[312565680,1706004173693,-2449.59672984,0.00023,2]
[312565681,1706004173715,-5414.48096758,0.00023,2]
[312565682,1706004173741,-355877.35048755,0.00023,2]
[312565684,1706004446955,300.0,0.000223,8]
[312565685,1706004448981,600.0,0.000224,8]
[312565686,1706004451090,900.0,0.000225,8]
[312565687,1706004453265,1200.0,0.000226,8]
[312565688,1706004455353,1500.0,0.000227,8]
[312565689,1706004457362,300.0,0.000228,8]
[312565690,1706004459485,300.0,0.000229,8]
[312565691,1706004534332,211.71,0.00025603,120]
[312565726,1706004631476,-295.78388584,0.00022767,2]
[312565727,1706004631486,-222.50250077,0.00022768,4]
[312565728,1706004631496,-155.86474206,0.000228,2]
[312565729,1706004631506,-155.86474201,0.00022807,2]
[312565730,1706004631515,-155.86474201,0.00022814,2]
[312565731,1706004631526,-155.86474201,0.00022821,2]
[312565732,1706004631536,-12.73835281,0.00022829,2]
[312565733,1706004631608,-143.1263892,0.00022829,2]
[312565734,1706004631618,-155.86474201,0.00022836,2]
[312565735,1706004631628,-155.86474201,0.00022843,2]
[312565736,1706004631641,-155.86474201,0.0002285,2]
[312565737,1706004631650,-155.86474201,0.00022857,2]
[312565738,1706004631660,-709.06923027,0.0002289,2]
[312565739,1706004631671,-282.33262533,0.0002289,2]
[312565740,1706004631708,-612.37351679,0.0002289,2]
[312565741,1706004631748,-934.04212761,0.0002289,2]
[312565742,1706004631757,-18388.61633849,0.000229,2]
[312565743,1706004631766,-1257.2742,0.000229,2]
[312565744,1706004631776,-493.1949,0.000229,2]
[312565745,1706004631785,-761.19227052,0.000229,2]
[312565746,1706004631796,-150.0,0.00022997,2]
[312565747,1706004631805,-187.96504818,0.00022998,2]
[312565748,1706004631815,-987.15058247,0.00022998,2]
[312565749,1706004631834,-782.29146,0.00022998,2]
[312565763,1706004637474,-155.86474201,0.00022864,2]
[312565764,1706004637483,-1886.33353147,0.00022998,2]
[312565765,1706004637501,-19555.87753619,0.00022998,2]
[312565766,1706004637520,-13886.30976118,0.00022998,2]
[312565767,1706004637565,-546.17176038,0.00022998,2]
[312565768,1706004637577,-1030.21621389,0.00022998,2]
[312565769,1706004637593,-7980.00014775,0.00022998,2]
[312565770,1706004637604,-298.7905302,0.00022998,2]
[312565771,1706004637692,-23566.95617551,0.00022998,2]
[312565772,1706004637701,-321.38020462,0.00022999,2]
[312565773,1706004637711,-203.9274524,0.00022999,2]
[312565774,1706004637720,-150.0,0.00022999,2]
[312565775,1706004637730,-248.97160551,0.00022999,2]
[312565776,1706004637739,-150.0,0.00022999,2]
[312565777,1706004637749,-248.97160551,0.00022999,2]
[312565778,1706004637759,-150.0,0.00022999,2]
[312565779,1706004637769,-248.97160551,0.00022999,2]
[312565780,1706004637779,-150.0,0.00022999,2]
[312565781,1706004637788,-248.97160551,0.00022999,2]
[312565782,1706004637800,-150.0,0.00022999,2]
[312565783,1706004637809,-248.97160551,0.00022999,2]
[312565784,1706004637818,-150.0,0.00022999,2]
[312565785,1706004637828,-248.97160551,0.00022999,2]
[312565786,1706004637839,-150.0,0.00022999,2]
[312565787,1706004637848,-248.97160551,0.00022999,2]
[312565788,1706004637857,-9936748.3813862,0.00023,2]
[312565789,1706004637869,-197128.32974707,0.00023,2]
[312565790,1706004637881,-103767.63632906,0.00023,2]
[312565791,1706004637897,-261.99836,0.00023,2]
[312565794,1706004637946,-3898.89886308,0.00023,2]
[312565795,1706004637959,-585.23996707,0.00023,2]
[312565796,1706004638047,-68086.8713615,0.00023,2]
[312565800,1706004638078,-3643.07661042,0.00023,2]
[312565801,1706004638090,-313.27,0.00023,2]
[312565802,1706004638109,-14539.16432152,0.00023,2]
[312565803,1706004638128,-3925.6,0.00023,2]
[312565810,1706004640114,-155.86474201,0.00022871,2]
[312565811,1706004640124,-4116.43525799,0.00023,2]
[312565813,1706004640229,-39262.38156398,0.00023,2]
[312565814,1706004640241,-355.32,0.00023,2]
[312565815,1706004640297,-437506.54277792,0.00023,2]
[312565816,1706004640308,-269.78455022,0.00023,2]
[312565817,1706004640323,-442.88535438,0.00023,2]
[312565818,1706004640335,-501.7001713,0.00023,2]
[312565825,1706004643372,-784.18,0.00023,2]
[312565826,1706004643384,-780.64760206,0.00023,2]
[312565829,1706004643460,-498.1733841,0.00023,2]
[312565830,1706004643472,-1807.65857259,0.00023,2]
[312565831,1706004643483,-79991.38714018,0.00023,2]
[312565832,1706004643494,-19524.96999601,0.00023,2]
[312565854,1706004643585,-3494.25567223,0.00023,2]
[312565857,1706004643596,-2135.38549796,0.00023,2]
[312565859,1706004643607,-10277.28904928,0.00023,2]
[312565861,1706004643620,-1648.37425309,0.00023,2]
[312565871,1706004643669,-687.42428315,0.00023,2]
[312565873,1706004643762,-457.32256415,0.00023,2]
[312565874,1706004643776,-1929.75908726,0.00023,2]
[312565875,1706004643846,-516.68256542,0.00023,2]
[312565876,1706004643857,-1340.52582585,0.00023,2]
[312565877,1706004643869,-5815.27699998,0.00023,2]
[312565878,1706004643888,-1432.99391161,0.00023,2]
[312565880,1706004644110,-63.83867522,0.00023,2]
[312565881,1706004644121,-955.59576504,0.00023,2]
[312565883,1706004644151,-155.86474201,0.00022879,2]
[312565884,1706004644161,-42828.88755657,0.00023,2]
[312565885,1706004644185,-861.16236143,0.00023,2]
[312565886,1706004644197,-1323.33603651,0.00023,2]
[312565889,1706004645642,-2305.7484,0.0002267,2]
[312565890,1706004645652,-24674.13789355,0.00023,2]
[312565891,1706004646062,-7351.74604712,0.00023,2]
[312565892,1706004646074,-4572.52516995,0.00023,2]
[312565893,1706004646087,-11704.92355963,0.00023,2]
[312565894,1706004646098,-2452.6972002,0.00023,2]
[312565895,1706004646129,-390.28,0.00023,2]
[312565896,1706004646207,-1330.01999995,0.00023,2]
[312565907,1706004647082,-956.09363516,0.00023,2]
[312565908,1706004647093,-686.0,0.00023,2]
[312565909,1706004647104,-916.65069652,0.00023,2]
[312565910,1706004647115,-348.82607161,0.00023,2]
[312565911,1706004647127,-1110.52500001,0.00023,2]
[312565912,1706004647233,-20268.58482151,0.00023,2]
[312565913,1706004655860,616.97420109,0.00020468,2]
[312565916,1706004706498,500.0,0.00020468,2]
[312565917,1706004706522,1825.32167616,0.00020468,2]
[312565918,1706004724497,2323.77265742,0.00020468,2]
[312565921,1706005053245,25000.0,0.00033,30]
[312565923,1706005161263,25000.0,0.00033,30]
[312565924,1706005212198,476.43,0.00019871,2]
[312565929,1706005238213,25000.0,0.00033,30]
[312565931,1706005287578,25000.0,0.00033,30]
[312565939,1706005620031,25000.0,0.00033,30]
[312565941,1706005647461,452.6,0.00019718,2]
[312565942,1706005745000,689.47,0.0003,30]
[312565984,1706005831692,-640.0,0.00021576,2]
[312565985,1706005831702,-175.79,0.00021584,2]
[312565987,1706005831711,-736.1966262,0.00021611,2]
[312565989,1706005831723,-559.4433738,0.00021611,2]
[312565991,1706005831734,-353.39,0.00021615,2]
[312565993,1706005831743,-150.0,0.00021623,2]
[312565994,1706005831753,-200.0,0.00021623,2]
[312565996,1706005831763,-250.0,0.00021642,2]
[312565997,1706005831773,-757.07,0.00021644,2]
[312565998,1706005831782,-155.86474201,0.00021689,2]
[312565999,1706005831792,-631.86,0.00021703,2]
[312566000,1706005831802,-360.0,0.00021724,2]
[312566001,1706005831814,-152.6,0.00021914,2]
[312566002,1706005831823,-250.0,0.00021918,2]
[312566003,1706005831833,-452.6,0.00021982,2]
[312566004,1706005831842,-176.47,0.00022,2]
[312566005,1706005831852,-152.6,0.00022009,2]
[312566006,1706005831862,-152.6,0.00022104,2]
[312566007,1706005831871,-152.6,0.00022199,2]
[312566008,1706005831882,-166.31,0.00022233,2]
[312566009,1706005831893,-152.6,0.00022294,2]
[312566010,1706005831902,-152.6,0.00022389,2]
[312566011,1706005831912,-757.07,0.00022445,2]
[312566012,1706005831921,-152.6,0.00022485,2]
[312566013,1706005831930,-177.47886258,0.00022548,2]
[312566014,1706005831940,-150.0,0.00022573,2]
[312566015,1706005831950,-152.6,0.0002258,2]
[312566016,1706005831960,-150.0,0.00022664,2]
[312566017,1706005831969,-861.64302161,0.00022665,2]
[312566018,1706005832063,-2233.1695942,0.00022665,2]
[312566019,1706005832107,-644.8767309,0.00022665,2]
[312566020,1706005833278,-1462.76875329,0.00022665,2]
[312566021,1706005833289,-152.6,0.00022675,2]
[312566022,1706005833300,-200.0,0.00022742,2]
[312566023,1706005833310,-24873.14408423,0.00022765,2]
[312566024,1706005833324,-1482.17765216,0.00022765,2]
[312566025,1706005833336,-3349.92499309,0.00022765,2]
[312566086,1706005837700,-58491.38784034,0.00022765,2]
[312566087,1706005837977,-282.36940041,0.00022766,2]
[312566088,1706005837991,-499.99,0.00022766,2]
[312566089,1706005838000,-8761.23,0.00022766,2]
[312566090,1706005838010,-637.67607881,0.00022768,2]
[312566091,1706005838019,-1229.20601844,0.00022769,2]
[312566092,1706005838029,-152.6,0.0002277,2]
[312566093,1706005838038,-200.0,0.00022816,2]
[312566094,1706005838048,-152.6,0.00022865,2]
[312566095,1706005838057,-2337.1607316,0.000229,2]
[312566096,1706005838070,-155.29678379,0.000229,2]
[312566097,1706005838079,-528.39710743,0.000229,2]
[312566098,1706005838088,-152.6,0.0002296,2]
[312566099,1706005838098,-215.41213944,0.00022975,2]
[312566100,1706005838107,-155.0,0.00022996,2]
[312566101,1706005838116,-4381.71420151,0.00022996,2]
[312566102,1706005838126,-3031.20814747,0.00022996,2]
[312566103,1706005838135,-1836.7235073,0.00022996,2]
[312566104,1706005838145,-491.298365,0.00022997,2]
[312566105,1706005838155,-244.33054012,0.00022997,2]
[312566106,1706005838164,-221.54491624,0.00022997,2]
[312566107,1706005838174,-4638.11355098,0.00022998,2]
[312566108,1706005838188,-274.76387559,0.00022998,2]
[312566109,1706005838197,-177.91292476,0.00022998,2]
[312566110,1706005838207,-24354.95155812,0.00022998,2]
[312566111,1706005838217,-155.62211023,0.00022998,2]
[312566112,1706005838228,-1605.59259017,0.00022998,2]
[312566113,1706005838239,-3677.14662018,0.00022998,2]
[312566114,1706005838248,-309.999999,0.00022998,2]
[312566115,1706005838257,-16769.48246492,0.00022998,2]
[312566116,1706005838267,-31726.28110314,0.00022998,2]
[312566117,1706005838280,-3613.84489398,0.00022998,2]
[312566118,1706005838303,-77.03929295,0.00022998,2]
[312566119,1706005838313,-172.96070705,0.00022998,2]
[312566120,1706005838327,-690.84238113,0.00022998,2]
[312566121,1706005838338,-973.8,0.00022998,2]
[312566122,1706005838783,-3608.19338002,0.00022998,2]
[312566123,1706005838793,-256.8018114,0.00022998,2]
[312566124,1706005838802,-346.13075499,0.00022998,2]
[312566125,1706005838811,-1866.82286476,0.00022998,2]
[312566126,1706005838822,-1500.0,0.00022999,2]
[312566127,1706005838833,-870.44734362,0.00022999,2]
[312566128,1706005838844,-235.25134461,0.00022999,2]
[312566129,1706005838854,-30316.3525006,0.00022999,2]
[312566130,1706005838956,-3071.03864252,0.00022999,2]
[312566131,1706005838966,-155.0,0.00022999,2]
[312566132,1706005838976,-635.66136512,0.00022999,2]
[312566133,1706005838985,-296.44165808,0.00022999,2]
[312566134,1706005839006,-192970.18808135,0.00023,2]
[312566135,1706005839020,-103767.63632906,0.00023,2]
[312566141,1706005840175,-531.06,0.00023,2]
[312566142,1706005840255,-115643.02673203,0.00023,2]
[312566143,1706005840279,-8199.54301232,0.00023,2]
[312566144,1706005840290,-1811.63303534,0.00023,2]
[312566145,1706005840305,-1789.99622207,0.00023,2]
[312566146,1706005840322,-1346.76643358,0.00023,2]
[312566147,1706005840335,-387.05507621,0.00023,2]
[312566148,1706005840346,-7782.20000002,0.00023,2]
[312566149,1706005840357,-39265.48136263,0.00023,2]
[312566150,1706005840920,-597.60997935,0.00023,2]
[312566151,1706005840936,-299.4117405,0.00023,2]
[312566152,1706005840947,-3103.72225,0.00023,2]
[312566153,1706005840959,-424.82213099,0.00023,2]
[312566154,1706005840971,-2260.5,0.00023,2]
[312566158,1706005841178,-367508.79774161,0.00023,2]
[312566159,1706005841190,-500.0,0.00023,2]
[312566160,1706005841201,-10179.64688514,0.00023,2]
[312566161,1706005841242,-3892.49999999,0.00023,2]
[312566219,1706005843905,-3897.78,0.00023,2]
[312566221,1706005843917,-1242.2416935,0.00023,2]
[312566223,1706005843929,-6322.62025607,0.00023,2]
[312566226,1706005843940,-717.584718,0.00023,2]
[312566228,1706005843951,-23482.07583958,0.00023,2]
[312566230,1706005843962,-16704.43177901,0.00023,2]
[312566234,1706005843989,-129517.5242025,0.00023,2]
[312566236,1706005843998,-21132.29593561,0.00023,2]
[312566238,1706005844009,-2115.70394357,0.00023,2]
[312566243,1706005844041,-296.71386855,0.00023,2]
[312566245,1706005844052,-3510.059181,0.00023,2]
[312566247,1706005844064,-2634.9914707,0.00023,2]
[312566249,1706005844076,-4103.3305331,0.00023,2]
[312566251,1706005844088,-2979.87841503,0.00023,2]
[312566254,1706005844103,-1245.28478886,0.00023,2]
[312566256,1706005844115,-561.1475396,0.00023,2]
[312566260,1706005844138,-3208.91479495,0.00023,2]
[312566262,1706005844148,-515.11357995,0.00023,2]
[312566265,1706005844164,-945.04456994,0.00023,2]
[312566267,1706005844175,-8851.14718337,0.00023,2]
[312566316,1706005845759,-890.66656144,0.00023,2]
[312566317,1706005845770,-126612.66093327,0.00023,2]
[312566318,1706005845780,-152.6,0.00023055,2]
[312566319,1706005845788,-6531.02080865,0.0002313,2]
[312566320,1706005845798,-757.07,0.00023245,2]
[312566321,1706005845807,-1295.64,0.00023255,2]
[312566322,1706005845816,-2156.0,0.000236,2]